fUST/lending_fUST_20250419
["ID","MTS","AMOUNT","RATE_DAILY","PERIOD"]
[358394585,1745058632775,-420.49297841,0.00021065,2]
[358394616,1745058638731,-25454.32971002,0.00021065,2]
[358394622,1745058638786,-4881.35558453,0.00021065,2]
[358394623,1745058638798,-159.7615506,0.00021065,2]
[358394624,1745058638808,-505.9,0.00021749,15]
[358394625,1745058638819,-500.0,0.00021814,2]
[358394626,1745058638832,-293.18463739,0.00021814,2]
[358394627,1745058638845,-204.09315512,0.00021814,2]
[358394628,1745058638855,-500.0,0.00021814,2]
[358394629,1745058638865,-500.0,0.00021814,2]
[358394630,1745058638875,-500.0,0.00021814,2]
[358394631,1745058638886,-14287.82066938,0.00021817,2]
[358394632,1745058638896,-218.79330086,0.00021851,2]
[358394633,1745058638906,-1680.11624223,0.000219,3]
[358394635,1745058638916,-420.4931809,0.00021904,2]
[358394637,1745058638926,-839.40992179,0.00021904,2]
[358394640,1745058638936,-151.0,0.00021904,2]
[358394644,1745058638946,-207.4,0.00021904,2]
[358394646,1745058638956,-160.0,0.00021905,2]
[358394648,1745058638965,-650.13207803,0.00021915,2]
[358394650,1745058638975,-156.86,0.00021916,2]
[358394652,1745058638984,-17750.26997351,0.00021917,2]
[358394653,1745058638994,-6376.25569809,0.00021917,3]
[358394654,1745058639005,-500.0,0.00021917,2]
[358394655,1745058639015,-500.0,0.00021917,2]
[358394656,1745058639025,-500.0,0.00021917,2]
[358394657,1745058639035,-233.13561876,0.00021917,2]
[358394658,1745058639048,-266.86438124,0.00021917,2]
[358394659,1745058639059,-500.0,0.00021917,2]
[358394660,1745058639069,-293.60493903,0.00021917,2]
[358394661,1745058639079,-501.40156226,0.00021917,2]
[358394662,1745058639090,-573.68518823,0.00021917,2]
[358394663,1745058639100,-500.0,0.00021917,2]
[358394664,1745058639110,-500.0,0.00021917,2]
[358394665,1745058639119,-500.0,0.00021917,2]
[358394666,1745058639129,-500.0,0.00021917,2]
[358394667,1745058639138,-500.0,0.00021917,2]
[358394668,1745058639148,-364.44392924,0.00021917,2]
[358394669,1745058639161,-502.81607076,0.00021917,2]
[358394670,1745058639171,-500.0,0.00021917,2]
[358394671,1745058639181,-799.35,0.00021917,2]
[358394672,1745058639191,-500.0,0.00021917,2]
[358394673,1745058639200,-500.0,0.00021917,2]
[358394674,1745058639211,-500.0,0.00021917,2]
[358394675,1745058639221,-500.0,0.00021917,2]
[358394676,1745058639231,-500.0,0.00021917,2]
[358394677,1745058639241,-500.0,0.00021917,2]
[358394678,1745058639251,-500.0,0.00021917,2]
[358394679,1745058639261,-500.0,0.00021917,2]
[358394680,1745058639272,-500.0,0.00021917,2]
[358394681,1745058639282,-839.33,0.00021917,2]
[358394682,1745058639291,-500.0,0.00021917,2]
[358394683,1745058639301,-500.0,0.00021917,2]
[358394684,1745058639311,-230.37975829,0.00021917,2]
[358394685,1745058639321,-500.0,0.00021917,2]
[358394686,1745058639331,-151.0,0.00021917,2]
[358394687,1745058639341,-197.15670007,0.00021917,2]
[358394688,1745058639351,-500.0,0.00021917,2]
[358394689,1745058639361,-500.0,0.00021917,2]
[358394690,1745058639370,-529.85847945,0.00021917,2]
[358394691,1745058639380,-500.0,0.00021917,2]
[358394692,1745058639390,-151.0,0.00021917,2]
[358394693,1745058639400,-500.0,0.00021917,2]
[358394694,1745058639410,-500.0,0.00021917,2]
[358394695,1745058639419,-500.0,0.00021917,2]
[358394696,1745058639430,-500.0,0.00021917,2]
[358394697,1745058639439,-500.0,0.00021917,2]
[358394698,1745058639449,-500.0,0.00021917,2]
[358394699,1745058639459,-500.0,0.00021917,2]
[358394700,1745058639469,-662.96,0.00021917,2]
[358394701,1745058639478,-500.0,0.00021917,2]
[358394702,1745058639487,-500.0,0.00021917,2]
[358394703,1745058639497,-581.48,0.00021917,2]
[358394704,1745058639506,-663.65,0.00021917,2]
[358394705,1745058639516,-500.0,0.00021917,2]
[358394706,1745058639526,-500.0,0.00021917,2]
[358394707,1745058639536,-328.09168934,0.00021917,2]
[358394708,1745058639545,-920.89,0.00021917,2]
[358394709,1745058639555,-500.0,0.00021917,2]
[358394710,1745058639566,-500.0,0.00021917,2]
[358394711,1745058639575,-554.67685672,0.00021917,2]
[358394712,1745058639585,-500.0,0.00021917,2]
[358394713,1745058639594,-500.0,0.00021917,2]
[358394714,1745058639604,-500.0,0.00021917,2]
[358394715,1745058639613,-500.0,0.00021917,2]
[358394716,1745058639623,-500.0,0.00021917,2]
[358394717,1745058639633,-520.71,0.00021917,2]
[358394718,1745058639643,-500.0,0.00021917,2]
[358394719,1745058639652,-500.0,0.00021917,2]
[358394720,1745058639662,-500.0,0.00021917,2]
[358394721,1745058639672,-854.57,0.00021917,2]
[358394722,1745058639682,-500.0,0.00021917,2]
[358394723,1745058639691,-500.0,0.00021917,2]
[358394724,1745058639701,-500.0,0.00021917,2]
[358394725,1745058639711,-516.65,0.00021917,2]
[358394726,1745058639721,-500.0,0.00021917,2]
[358394727,1745058639731,-500.0,0.00021917,2]
[358394728,1745058639741,-500.0,0.00021917,2]
[358394729,1745058639752,-500.0,0.00021917,2]
[358394730,1745058639762,-500.0,0.00021917,2]
[358394731,1745058639773,-500.0,0.00021917,2]
[358394732,1745058639783,-2724.23,0.00021917,2]
[358394733,1745058639793,-500.0,0.00021917,2]
[358394734,1745058639803,-527.73256221,0.00021917,2]
[358394735,1745058639813,-883.95,0.00021917,2]
[358394736,1745058639823,-500.0,0.00021917,2]
[358394737,1745058639833,-500.0,0.00021917,2]
[358394738,1745058639846,-500.0,0.00021917,2]
[358394739,1745058639856,-500.0,0.00021917,2]
[358394740,1745058639866,-500.0,0.00021917,2]
[358394741,1745058639875,-500.0,0.00021917,2]
[358394742,1745058639887,-151.0,0.00021917,2]
[358394743,1745058639897,-500.0,0.00021917,2]
[358394744,1745058639907,-500.0,0.00021917,2]
[358394745,1745058639919,-500.0,0.00021917,2]
[358394746,1745058639929,-500.0,0.00021917,2]
[358394747,1745058639939,-946.96,0.00021917,2]
[358394748,1745058639948,-500.0,0.00021917,2]
[358394749,1745058639958,-500.0,0.00021917,2]
[358394750,1745058639969,-151.0,0.00021917,2]
[358394751,1745058639978,-500.0,0.00021917,2]
[358394752,1745058639988,-500.0,0.00021917,2]
[358394753,1745058639999,-997.82,0.00021917,2]
[358394754,1745058640010,-758.76,0.00021917,2]
[358394755,1745058640020,-695.25,0.00021917,2]
[358394756,1745058640030,-483.36948741,0.00021917,2]
[358394757,1745058640040,-1525.48,0.00021917,2]
[358394758,1745058640050,-500.0,0.00021917,2]
[358394759,1745058640060,-500.0,0.00021917,2]
[358394760,1745058640070,-501.78727598,0.00021917,2]
[358394761,1745058640080,-500.0,0.00021917,2]
[358394762,1745058640090,-500.0,0.00021917,2]
[358394763,1745058640100,-665.52,0.00021917,2]
[358394764,1745058640110,-500.0,0.00021917,2]
[358394765,1745058640120,-500.0,0.00021917,2]
[358394766,1745058640129,-500.0,0.00021917,2]
[358394767,1745058640139,-504.12152881,0.00021917,2]
[358394768,1745058640148,-503.14055566,0.00021917,2]
[358394769,1745058640158,-500.0,0.00021917,2]
[358394770,1745058640168,-500.0,0.00021917,2]
[358394771,1745058640178,-500.0,0.00021917,2]
[358394772,1745058640188,-500.0,0.00021917,2]
[358394773,1745058640198,-500.0,0.00021917,2]
[358394774,1745058640208,-500.0,0.00021917,2]
[358394775,1745058640217,-500.0,0.00021917,2]
[358394776,1745058640228,-500.0,0.00021917,2]
[358394778,1745058640238,-500.0,0.00021917,2]
[358394780,1745058640248,-500.0,0.00021917,2]
[358394781,1745058640258,-502.53121565,0.00021917,2]
[358394782,1745058640269,-500.0,0.00021917,2]
[358394783,1745058640280,-500.0,0.00021917,2]
[358394784,1745058640290,-572.65,0.00021917,2]
[358394785,1745058640301,-500.0,0.00021917,2]
[358394786,1745058640311,-500.0,0.00021917,2]
[358394787,1745058640321,-547.89,0.00021917,2]
[358394788,1745058640331,-500.0,0.00021917,2]
[358394789,1745058640342,-500.0,0.00021917,2]
[358394790,1745058640351,-500.0,0.00021917,2]
[358394791,1745058640361,-151.0,0.00021917,2]
[358394792,1745058640371,-151.0,0.00021917,2]
[358394793,1745058640381,-500.0,0.00021917,2]
[358394794,1745058640391,-500.0,0.00021917,2]
[358394795,1745058640402,-500.0,0.00021917,2]
[358394796,1745058640412,-579.54,0.00021917,2]
[358394797,1745058640423,-151.0,0.00021917,2]
[358394798,1745058640433,-500.0,0.00021917,2]
[358394799,1745058640443,-558.72,0.00021917,2]
[358394800,1745058640453,-502.32125873,0.00021917,2]
[358394801,1745058640463,-590.67,0.00021917,2]
[358394802,1745058640473,-900.1,0.00021917,2]
[358394803,1745058640483,-500.0,0.00021917,2]
[358394804,1745058640493,-500.0,0.00021917,2]
[358394806,1745058640502,-501.84421168,0.00021917,2]
[358394808,1745058640511,-501.32987272,0.00021917,2]
[358394809,1745058640521,-484.49651498,0.00021917,2]
[358394810,1745058640542,-15.50348502,0.00021917,2]
[358394811,1745058640552,-500.0,0.00021917,2]
[358394813,1745058640562,-618.31,0.00021917,2]
[358394814,1745058640573,-500.0,0.00021917,2]
[358394815,1745058640583,-500.0,0.00021917,2]
[358394816,1745058640593,-500.0,0.00021917,2]
[358394817,1745058640604,-500.0,0.00021917,2]
[358394818,1745058640615,-500.0,0.00021917,2]
[358394819,1745058640625,-500.0,0.00021917,2]
[358394820,1745058640636,-500.0,0.00021917,2]
[358394821,1745058640646,-500.0,0.00021917,2]
[358394822,1745058640655,-500.0,0.00021917,2]
[358394824,1745058640665,-500.0,0.00021917,2]
[358394825,1745058640675,-693.76,0.00021917,2]
[358394826,1745058640687,-539.28,0.00021917,2]
[358394827,1745058640697,-500.0,0.00021917,2]
[358394828,1745058640708,-500.0,0.00021917,2]
[358394829,1745058640718,-290.72,0.00021917,2]
[358394830,1745058640728,-500.0,0.00021917,2]
[358394831,1745058640740,-500.0,0.00021917,2]
[358394832,1745058640750,-500.0,0.00021917,2]
[358394833,1745058640760,-500.0,0.00021917,2]
[358394834,1745058640771,-500.0,0.00021917,2]
[358394835,1745058640782,-500.0,0.00021917,2]
[358394836,1745058640793,-500.0,0.00021917,2]
[358394837,1745058640803,-500.0,0.00021917,2]
[358394838,1745058640813,-500.0,0.00021917,2]
[358394839,1745058640824,-500.0,0.00021917,2]
[358394840,1745058640835,-500.0,0.00021917,2]
[358394841,1745058640849,-500.0,0.00021917,2]
[358394842,1745058640859,-500.0,0.00021917,2]
[358394843,1745058640869,-500.0,0.00021917,2]
[358394844,1745058640879,-500.0,0.00021917,2]
[358394845,1745058640889,-500.0,0.00021917,2]
[358394846,1745058640899,-167.694079,0.00021917,2]
[358394847,1745058640909,-562.3333515,0.00021917,2]
[358394848,1745058640920,-500.0,0.00021917,2]
[358394849,1745058640930,-500.0,0.00021917,2]
[358394850,1745058640940,-622.21,0.00021917,2]
[358394851,1745058640950,-151.0,0.00021917,2]
[358394852,1745058640960,-151.0,0.00021917,2]
[358394853,1745058640970,-151.0,0.00021917,2]
[358394854,1745058640981,-151.0,0.00021917,2]
[358394855,1745058640991,-191.7693,0.00021917,2]
[358394856,1745058641002,-240.55907775,0.00021917,2]
[358394857,1745058641013,-500.0,0.00021917,2]
[358394858,1745058641022,-500.0,0.00021917,2]
[358394859,1745058641033,-500.0,0.00021917,2]
[358394860,1745058641045,-500.0,0.00021917,2]
[358394861,1745058641055,-500.0,0.00021917,2]
[358394862,1745058641065,-500.0,0.00021917,2]
[358394863,1745058641075,-500.0,0.00021917,2]
[358394864,1745058641085,-500.0,0.00021917,2]
[358394865,1745058641095,-500.0,0.00021917,2]
[358394866,1745058641107,-500.0,0.00021917,2]
[358394867,1745058641118,-500.0,0.00021917,2]
[358394868,1745058641128,-500.0,0.00021917,2]
[358394869,1745058641138,-500.0,0.00021917,2]
[358394870,1745058641149,-500.0,0.00021917,2]
[358394871,1745058641159,-500.0,0.00021917,2]
[358394872,1745058641170,-500.0,0.00021917,2]
[358394873,1745058641179,-500.0,0.00021917,2]
[358394876,1745058641189,-500.0,0.00021917,2]
[358394879,1745058641198,-500.0,0.00021917,2]
[358394881,1745058641207,-500.0,0.00021917,2]
[358394883,1745058641217,-500.0,0.00021917,2]
[358394884,1745058641227,-500.0,0.00021917,2]
[358394885,1745058641236,-500.0,0.00021917,2]
[358394886,1745058641246,-500.0,0.00021917,2]
[358394887,1745058641257,-991.28,0.00021917,2]
[358394888,1745058641267,-456.96923881,0.00021917,2]
[358394889,1745058641277,-500.0,0.00021917,2]
[358394890,1745058641286,-1091.27,0.00021917,2]
[358394891,1745058641296,-759.95,0.00021917,2]
[358394892,1745058641306,-500.0,0.00021917,2]
[358394893,1745058641315,-500.0,0.00021917,2]
[358394894,1745058641325,-500.0,0.00021917,2]
[358394895,1745058641335,-151.0,0.00021917,2]
[358394896,1745058641499,-258.564475,0.00021917,2]
[358394897,1745058641509,-576.08,0.00021917,2]
[358394898,1745058641519,-500.0,0.00021917,2]
[358394899,1745058641529,-855.21,0.00021917,2]
[358394900,1745058641540,-500.0,0.00021917,2]
[358394901,1745058641549,-500.0,0.00021917,2]
[358394902,1745058641560,-687.75,0.00021917,2]
[358394903,1745058641570,-11187.5,0.00021917,2]
[358394904,1745058641580,-503.98926482,0.00021917,2]
[358394905,1745058641589,-500.0,0.00021917,2]
[358394906,1745058641599,-1204.14,0.00021917,2]
[358394907,1745058641610,-500.0,0.00021917,2]
[358394908,1745058641619,-1104.92,0.00021917,2]
[358394909,1745058641630,-1000.0,0.00021917,2]
[358394910,1745058641639,-500.0,0.00021917,2]
[358394911,1745058641649,-500.0,0.00021917,2]
[358394912,1745058641659,-593.02,0.00021917,2]
[358394913,1745058641670,-896.25,0.00021917,2]
[358394914,1745058641679,-1244.71,0.00021917,2]
[358394915,1745058641689,-595.5,0.00021917,2]
[358394916,1745058641699,-861.39,0.00021917,2]
[358394917,1745058641709,-570.27,0.00021917,2]
[358394918,1745058641719,-500.0,0.00021917,2]
[358394919,1745058641728,-500.0,0.00021917,2]
[358394920,1745058641738,-860.77,0.00021917,2]
[358394921,1745058641748,-500.0,0.00021917,2]
[358394922,1745058641758,-3614.13,0.00021917,2]
[358394923,1745058641767,-500.0,0.00021917,2]
[358394924,1745058641777,-500.0,0.00021917,2]
[358394925,1745058641787,-500.0,0.00021917,2]
[358394926,1745058641796,-500.0,0.00021917,2]
[358394927,1745058641806,-500.0,0.00021917,2]
[358394928,1745058641816,-500.0,0.00021917,2]
[358394929,1745058641825,-500.0,0.00021917,2]
[358394930,1745058641836,-500.0,0.00021917,2]
[358394931,1745058641849,-500.0,0.00021917,2]
[358394932,1745058641859,-561.12,0.00021917,2]
[358394933,1745058641868,-1600.71,0.00021917,2]
[358394934,1745058641879,-663.93,0.00021917,2]
[358394935,1745058641888,-500.0,0.00021917,2]
[358394936,1745058641899,-500.0,0.00021917,2]
[358394937,1745058641908,-3152.2,0.00021917,2]
[358394938,1745058641919,-500.0,0.00021917,2]
[358394939,1745058641930,-500.0,0.00021917,2]
[358394940,1745058641940,-500.0,0.00021917,2]
[358394941,1745058641951,-500.0,0.00021917,2]
[358394942,1745058641963,-500.0,0.00021917,2]
[358394943,1745058641972,-511.03,0.00021917,2]
[358394944,1745058641982,-500.0,0.00021917,2]
[358394945,1745058641991,-500.0,0.00021917,2]
[358394946,1745058642002,-500.0,0.00021917,2]
[358394947,1745058642011,-500.0,0.00021917,2]
[358394948,1745058642021,-500.0,0.00021917,2]
[358394949,1745058642031,-1100.81,0.00021917,2]
[358394950,1745058642041,-500.0,0.00021917,2]
[358394951,1745058642050,-500.0,0.00021917,2]
[358394952,1745058642059,-151.0,0.00021917,2]
[358394953,1745058642069,-151.0,0.00021917,2]
[358394954,1745058642079,-1072.19,0.00021917,2]
[358394955,1745058642088,-151.0,0.00021917,2]
[358394956,1745058642099,-151.0,0.00021917,2]
[358394957,1745058642108,-500.0,0.00021917,2]
[358394958,1745058642118,-504.71,0.00021917,2]
[358394959,1745058642128,-680.55,0.00021917,2]
[358394960,1745058642137,-2397.14,0.00021917,2]
[358394961,1745058642148,-500.0,0.00021917,2]
[358394962,1745058642159,-987.59,0.00021917,2]
[358394963,1745058642168,-500.0,0.00021917,2]
[358394964,1745058642178,-500.0,0.00021917,2]
[358394965,1745058642188,-849.91,0.00021917,2]
[358394966,1745058642198,-3262.94,0.00021917,2]
[358394967,1745058642208,-500.0,0.00021917,2]
[358394968,1745058642218,-151.0,0.00021917,2]
[358394969,1745058642227,-151.0,0.00021917,2]
[358394970,1745058642237,-500.0,0.00021917,2]
[358394971,1745058642246,-606.66,0.00021917,2]
[358394972,1745058642256,-500.0,0.00021917,2]
[358394973,1745058642266,-500.0,0.00021917,2]
[358394974,1745058642276,-4701.91,0.00021917,2]
[358394975,1745058642293,-876.51,0.00021917,2]
[358394976,1745058642309,-791.67,0.00021917,2]
[358394977,1745058642320,-500.0,0.00021917,2]
[358394978,1745058642330,-500.0,0.00021917,2]
[358394979,1745058642341,-586.78,0.00021917,2]
[358394980,1745058642351,-5271.87,0.00021917,2]
[358394981,1745058642362,-500.0,0.00021917,2]
[358394982,1745058642372,-500.0,0.00021917,2]
[358394983,1745058642382,-151.0,0.00021917,2]
[358394984,1745058642391,-151.0,0.00021917,2]
[358394985,1745058642401,-500.0,0.00021917,2]
[358394986,1745058642412,-500.0,0.00021917,2]
[358394987,1745058642422,-500.0,0.00021917,2]
[358394988,1745058642432,-151.0,0.00021917,2]
[358394989,1745058642443,-500.0,0.00021917,2]
[358394990,1745058642453,-151.0,0.00021917,2]
[358394991,1745058642464,-500.0,0.00021917,2]
[358394992,1745058642476,-500.0,0.00021917,2]
[358394993,1745058642487,-746.49,0.00021917,2]
[358394994,1745058642499,-245.0,0.00021917,2]
[358394995,1745058642510,-1667.17,0.00021917,2]
[358394996,1745058642520,-500.0,0.00021917,2]
[358394997,1745058642531,-724.64,0.00021917,2]
[358394998,1745058642543,-1469.1,0.00021917,2]
[358394999,1745058642555,-500.0,0.00021917,2]
[358395000,1745058642567,-500.0,0.00021917,2]
[358395001,1745058642576,-435.33106393,0.00021917,2]
[358395002,1745058642587,-500.0,0.00021917,2]
[358395003,1745058642597,-6482.22,0.00021917,2]
[358395004,1745058642607,-645.55,0.00021917,2]
[358395005,1745058642617,-500.0,0.00021917,2]
[358395006,1745058642629,-9289.30101327,0.00021917,2]
[358395007,1745058642847,-286.97427163,0.00021917,2]
[358395008,1745058642859,-998.86950075,0.00021917,2]
[358395009,1745058642871,-316.93322152,0.00021917,2]
[358395010,1745058642912,-480.51426054,0.00021917,2]
[358395011,1745058643102,-282.76718137,0.00021917,2]
[358395012,1745058643118,-6013.05055092,0.00021917,2]
[358395013,1745058643130,-500.0,0.00021917,2]
[358395014,1745058643142,-579.33,0.00021917,2]
[358395015,1745058643155,-500.0,0.00021917,2]
[358395016,1745058643170,-500.0,0.00021917,2]
[358395017,1745058643182,-500.0,0.00021917,2]
[358395018,1745058643196,-500.0,0.00021917,2]
[358395019,1745058643206,-817.24,0.00021917,2]
[358395021,1745058643217,-500.0,0.00021917,2]
[358395024,1745058643229,-926.75,0.00021917,2]
[358395026,1745058643241,-500.0,0.00021917,2]
[358395027,1745058643253,-500.0,0.00021917,2]
[358395028,1745058643267,-533.47,0.00021917,2]
[358395029,1745058643279,-753.84,0.00021917,2]
[358395030,1745058643290,-567.63365229,0.00021917,2]
[358395031,1745058643311,-621.13634771,0.00021917,2]
[358395032,1745058643323,-93.64446042,0.00021917,2]
[358395034,1745058643340,-330.154,0.00021917,2]
[358395036,1745058643358,-76.20153958,0.00021917,2]
[358395038,1745058643370,-370.43672455,0.00021917,2]
[358395040,1745058643672,-129.56327545,0.00021917,2]
[358395041,1745058643683,-500.0,0.00021917,2]
[358395042,1745058643694,-500.0,0.00021917,2]
[358395043,1745058643705,-667.43307887,0.00021917,2]
[358395044,1745058643736,-63.04692113,0.00021917,2]
[358395045,1745058643747,-512.22,0.00021917,2]
[358395046,1745058643757,-500.0,0.00021917,2]
[358395047,1745058643768,-245.585136,0.00021917,2]
[358395048,1745058643779,-245.585136,0.00021917,2]
[358395049,1745058643790,-245.585136,0.00021917,2]
[358395050,1745058643800,-245.585136,0.00021917,2]
[358395051,1745058643811,-500.0,0.00021917,2]
[358395052,1745058643822,-532.05,0.00021917,2]
[358395053,1745058643833,-145.36215088,0.00021917,2]
[358395062,1745058646943,-297.0,0.00021917,2]
[358395063,1745058646958,-462.14600001,0.00021917,2]
[358395064,1745058647050,-130.00473911,0.00021917,2]
[358395065,1745058647063,-1034.51289,0.00021917,2]
[358395066,1745058647075,-500.0,0.00021917,2]
[358395067,1745058647086,-500.0,0.00021917,2]
[358395068,1745058647098,-500.0,0.00021917,2]
[358395070,1745058647110,-1034.51289,0.00021917,2]
[358395071,1745058647122,-1034.51289,0.00021917,2]
[358395072,1745058647133,-959.86,0.00021917,2]
[358395073,1745058647144,-520.06,0.00021917,2]
[358395074,1745058647155,-500.0,0.00021917,2]
[358395075,1745058647167,-500.0,0.00021917,2]
[358395076,1745058647178,-1068.65,0.00021917,2]
[358395077,1745058647189,-500.0,0.00021917,2]
[358395078,1745058647200,-543.2,0.00021917,2]
[358395079,1745058647212,-500.0,0.00021917,2]
[358395080,1745058647223,-500.0,0.00021917,2]
[358395081,1745058647235,-500.0,0.00021917,2]
[358395082,1745058647246,-500.0,0.00021917,2]
[358395083,1745058647258,-500.0,0.00021917,2]
[358395084,1745058647270,-666.629607,0.00021918,2]
[358395085,1745058647282,-151.0,0.00021918,2]
[358395086,1745058647293,-151.0,0.00021918,2]
[358395087,1745058647305,-300.0,0.00021973,2]
[358395088,1745058647317,-500.0,0.00021973,2]
[358395089,1745058647328,-500.0,0.00021973,2]
[358395090,1745058647339,-500.0,0.00021973,2]
[358395091,1745058647348,-500.0,0.00021973,2]
[358395092,1745058647358,-500.0,0.00021973,2]
[358395093,1745058647368,-500.0,0.00021973,2]
[358395094,1745058647378,-227.637536,0.00021973,2]
[358395095,1745058647387,-500.0,0.00021973,2]
[358395096,1745058647398,-200.29692397,0.00022,2]
[358395097,1745058647409,-378.69607,0.00022079,15]
[358395098,1745058647419,-151.0,0.00022091,7]
[358395099,1745058647430,-151.0,0.00022091,7]
[358395100,1745058647439,-200.0,0.000221,2]
[358395101,1745058647449,-50.43829972,0.000221,2]
[358395102,1745058647462,-149.56170028,0.000221,2]
[358395103,1745058647472,-634.0,0.000221,2]
[358395104,1745058647483,-159.0,0.00022133,3]
[358395105,1745058647493,-159.0,0.00022133,3]
[358395106,1745058647503,-160.74832948,0.00022133,3]
[358395107,1745058647512,-359.0,0.00022133,3]
[358395108,1745058647522,-372.8087485,0.00022133,3]
[358395109,1745058647532,-500.0,0.00022173,2]
[358395110,1745058647542,-266.26397192,0.00022173,2]
[358395111,1745058647558,-233.73602808,0.00022173,2]
[358395112,1745058647568,-500.0,0.00022173,2]
[358395113,1745058647578,-177.23183137,0.0002219,2]
[358395114,1745058647831,-62.12853355,0.0002219,2]
[358395300,1745059831871,-500.0,0.00019725,2]
[358395301,1745059831881,-300.0,0.00019916,2]
[358395302,1745059831890,-300.0,0.00019916,2]
[358395303,1745059831900,-2878.55178155,0.00019917,2]
[358395362,1745059840390,-1920.19872541,0.00019917,2]
[358395383,1745059842912,-1503.0,0.00019917,2]
[358395384,1745059842924,-2039.95364568,0.00019917,2]
[358395385,1745059842936,-616.75923711,0.00019917,2]
[358395386,1745059843126,-3346.69067906,0.00019917,2]
[358395387,1745059843143,-5409.88965544,0.00019917,2]
[358395388,1745059843155,-7184.95627575,0.00019917,2]
[358395389,1745059843164,-335.98577963,0.00019979,2]
[358395390,1745059843173,-366.054609,0.00020254,2]
[358395391,1745059843183,-1534.25827049,0.00020478,2]
[358395392,1745059843192,-1000.406706,0.000205,2]
[358395393,1745059843202,-542.2,0.00020577,2]
[358395394,1745059843212,-500.0,0.00020577,2]
[358395395,1745059843221,-500.0,0.00020577,2]
[358395396,1745059843231,-500.0,0.00020577,2]
[358395397,1745059843240,-394.51804001,0.00020577,2]
[358395398,1745059843250,-459.34724571,0.00020577,2]
[358395399,1745059843262,-40.65275429,0.00020577,2]
[358395400,1745059843272,-381.66198142,0.00020577,2]
[358395401,1745059843282,-500.0,0.00020577,2]
[358395402,1745059843291,-3264.48413326,0.00020578,2]
[358395403,1745059843303,-757.49704894,0.00020578,2]
[358395404,1745059843487,-297.25349683,0.00020578,2]
[358395413,1745059846003,-223.99051975,0.000189,2]
[358395414,1745059846013,-266.67145052,0.00020578,2]
[358395415,1745059846110,-450.0,0.00020578,2]
[358395416,1745059846167,-4132.24302207,0.00020578,2]
[358395509,1745060412346,172.79313631,0.00017776,2]
[358395602,1745061032126,-539.6283907,0.00018441,2]
[358395603,1745061032136,-183.027305,0.00018754,2]
[358395604,1745061032146,-573.82448495,0.000189,2]
[358395605,1745061032155,-359.37783628,0.000189,2]
[358395606,1745061032165,-300.0,0.00018905,2]
[358395607,1745061032174,-12964.7314083,0.00018906,2]
[358395609,1745061032183,-24900.0,0.00019623,2]
[358395611,1745061032193,-193.39457088,0.00019625,2]
[358395613,1745061032202,-293.34693593,0.00019725,2]
[358395651,1745061038231,-206.65306407,0.00019725,2]
[358395652,1745061038242,-417.8170346,0.00019796,2]
[358395653,1745061038252,-6134.52990132,0.000199,2]
[358395660,1745061040746,-2209.53562081,0.000199,2]